fUSD/lending_fUSD_20260516
["ID","MTS","AMOUNT","RATE_DAILY","PERIOD"]
[422361921,1778873441000,-320.0,0.00014959,2]
[422361919,1778873441000,-272.83358309,0.00014956,2]
[422361917,1778873441000,-150.0,0.00014951,2]
[422361905,1778873441000,-272.83358309,0.00014911,2]
[422361903,1778873441000,-150.0,0.00014903,2]
[422361899,1778873441000,-3500.0,0.000149,5]
[422361898,1778873441000,-16319.32480331,0.000149,2]
[422361896,1778873441000,-2184.46271996,0.000149,2]
[422361901,1778873441000,-150.0,0.00014903,2]
[422361915,1778873441000,-150.0,0.00014945,2]
[422361906,1778873441000,-150.0,0.00014915,2]
[422361929,1778873441000,-1000.0,0.0001497,2]
[422361912,1778873441000,-272.83358309,0.00014941,2]
[422361910,1778873441000,-150.0,0.00014929,2]
[422361914,1778873441000,-150.0,0.00014945,2]
[422361928,1778873441000,-500.0,0.0001497,2]
[422361926,1778873441000,-1000.0,0.0001497,2]
[422361933,1778873441000,-1000.0,0.0001497,2]
[422361936,1778873441000,-1000.0,0.0001497,2]
[422361938,1778873441000,-500.0,0.0001497,2]
[422361942,1778873441000,-500.0,0.0001497,2]
[422361931,1778873441000,-500.0,0.0001497,2]
[422361935,1778873441000,-500.0,0.0001497,2]
[422361894,1778873441000,-1464.89522498,0.000149,2]
[422361943,1778873441000,-1215.46028509,0.0001497,2]
[422361908,1778873441000,-272.83358309,0.00014926,2]
[422361889,1778873441000,-735.48096882,0.000149,2]
[422361865,1778873441000,-500.0,0.00014899,2]
[422361891,1778873441000,-9233.85867884,0.000149,2]
[422361940,1778873441000,-1000.0,0.0001497,2]
[422361841,1778873441000,-162.0,0.0001488,2]
[422361844,1778873441000,-449.27263838,0.00014887,2]
[422361839,1778873441000,-162.0,0.0001488,2]
[422361843,1778873441000,-272.83358309,0.0001488,2]
[422361846,1778873441000,-150.0,0.00014893,2]
[422361848,1778873441000,-272.83358309,0.00014895,2]
[422361849,1778873441000,-150.0,0.00014898,2]
[422361851,1778873441000,-500.0,0.00014899,2]
[422361854,1778873441000,-500.0,0.00014899,2]
[422361853,1778873441000,-549.88,0.00014899,2]
[422361856,1778873441000,-500.0,0.00014899,2]
[422361858,1778873441000,-500.0,0.00014899,2]
[422361892,1778873441000,-449.27263838,0.000149,2]
[422361860,1778873441000,-500.0,0.00014899,2]
[422361867,1778873441000,-500.0,0.00014899,2]
[422361869,1778873441000,-500.0,0.00014899,2]
[422361871,1778873441000,-500.0,0.00014899,2]
[422361881,1778873441000,-17061.47664226,0.000149,3]
[422361872,1778873441000,-1215.65,0.00014899,2]
[422361862,1778873441000,-500.0,0.00014899,2]
[422361874,1778873441000,-500.0,0.00014899,2]
[422361876,1778873441000,-500.0,0.00014899,2]
[422361878,1778873441000,-500.0,0.00014899,2]
[422361879,1778873441000,-500.0,0.00014899,2]
[422361885,1778873441000,-153.53198692,0.000149,2]
[422361883,1778873441000,-2148.8280755,0.000149,2]
[422361887,1778873441000,-3745.31437529,0.000149,2]
[422361864,1778873441000,-500.0,0.00014899,2]
[422361944,1778873441000,-500.0,0.0001497,2]
[422362048,1778873441000,-392373.1354634,0.00014974,2]
[422361958,1778873441000,-500.0,0.00014973,2]
[422362003,1778873441000,-537.71298597,0.00014973,2]
[422362019,1778873441000,-500.0,0.00014973,2]
[422362015,1778873441000,-1215.65,0.00014973,2]
[422362017,1778873441000,-500.0,0.00014973,2]
[422362021,1778873441000,-746.33,0.00014973,2]
[422362031,1778873441000,-500.0,0.00014973,2]
[422362033,1778873441000,-500.0,0.00014973,2]
[422362023,1778873441000,-500.0,0.00014973,2]
[422362035,1778873441000,-500.0,0.00014973,2]
[422362037,1778873441000,-500.0,0.00014973,2]
[422362039,1778873441000,-500.0,0.00014973,2]
[422362025,1778873441000,-500.0,0.00014973,2]
[422362027,1778873441000,-500.0,0.00014973,2]
[422362029,1778873441000,-500.0,0.00014973,2]
[422362041,1778873441000,-2356.0,0.00014974,5]
[422362043,1778873441000,-1880.0,0.00014974,5]
[422362045,1778873441000,-4489.4952223,0.00014974,2]
[422362064,1778873441000,-287.11416309,0.00014986,2]
[422362051,1778873441000,-22325.6032016,0.00014974,2]
[422362053,1778873441000,-1681.64677,0.00014974,2]
[422362056,1778873441000,-3703.2873165,0.00014974,2]
[422362054,1778873441000,-86644.2182703,0.00014974,2]
[422362066,1778873441000,-275.90606938,0.00014986,2]
[422362047,1778873441000,-13569.269103,0.00014974,2]
[422362058,1778873441000,-1106.42,0.00014978,2]
[422362060,1778873441000,-1106.42,0.00014978,2]
[422362063,1778873441000,-150.0,0.00014986,2]
[422362001,1778873441000,-500.0,0.00014973,2]
[422361999,1778873441000,-500.0,0.00014973,2]
[422361956,1778873441000,-500.0,0.00014972,2]
[422362013,1778873441000,-1215.65,0.00014973,2]
[422361946,1778873441000,-689.73790928,0.0001497,2]
[422361947,1778873441000,-300.0,0.0001497,2]
[422361960,1778873441000,-500.0,0.00014973,2]
[422361949,1778873441000,-272.83358309,0.00014971,2]
[422361952,1778873441000,-508.37684919,0.00014972,2]
[422361964,1778873441000,-549.88,0.00014973,2]
[422361966,1778873441000,-500.0,0.00014973,2]
[422362011,1778873441000,-500.0,0.00014973,2]
[422361954,1778873441000,-746.33,0.00014972,2]
[422361968,1778873441000,-500.0,0.00014973,2]
[422361978,1778873441000,-500.0,0.00014973,2]
[422361979,1778873441000,-500.0,0.00014973,2]
[422361970,1778873441000,-500.0,0.00014973,2]
[422361972,1778873441000,-502.56578458,0.00014973,2]
[422361962,1778873441000,-549.88,0.00014973,2]
[422361983,1778873441000,-500.0,0.00014973,2]
[422361976,1778873441000,-500.0,0.00014973,2]
[422362007,1778873441000,-500.0,0.00014973,2]
[422362009,1778873441000,-500.0,0.00014973,2]
[422361997,1778873441000,-500.0,0.00014973,2]
[422362005,1778873441000,-500.0,0.00014973,2]
[422361991,1778873441000,-500.0,0.00014973,2]
[422361995,1778873441000,-500.0,0.00014973,2]
[422361987,1778873441000,-500.0,0.00014973,2]
[422361989,1778873441000,-500.0,0.00014973,2]
[422361981,1778873441000,-500.0,0.00014973,2]
[422361985,1778873441000,-500.0,0.00014973,2]
[422361974,1778873441000,-500.0,0.00014973,2]
[422361993,1778873441000,-500.0,0.00014973,2]
[422362152,1778873442000,-549.88,0.00014999,2]
[422362168,1778873442000,-254.28762829,0.00014999,2]
[422362154,1778873442000,-549.88,0.00014999,2]
[422362162,1778873442000,-500.0,0.00014999,2]
[422362150,1778873442000,-549.88,0.00014999,2]
[422362135,1778873442000,-549.88,0.00014999,2]
[422362144,1778873442000,-549.88,0.00014999,2]
[422362146,1778873442000,-549.88,0.00014999,2]
[422362139,1778873442000,-549.88,0.00014999,2]
[422362134,1778873442000,-549.88,0.00014999,2]
[422362131,1778873442000,-549.88,0.00014999,2]
[422362148,1778873442000,-549.88,0.00014999,2]
[422362156,1778873442000,-549.92844731,0.00014999,2]
[422362182,1778873442000,-1106.42,0.00014999,2]
[422362158,1778873442000,-500.0,0.00014999,2]
[422362163,1778873442000,-500.0,0.00014999,2]
[422362169,1778873442000,-500.0,0.00014999,2]
[422362166,1778873442000,-500.0,0.00014999,2]
[422362171,1778873442000,-276.56058421,0.00014999,2]
[422362174,1778873442000,-1106.42,0.00014999,2]
[422362176,1778873442000,-1106.42,0.00014999,2]
[422362189,1778873442000,-1106.42,0.00014999,2]
[422362191,1778873442000,-1106.42,0.00014999,2]
[422362187,1778873442000,-1106.42,0.00014999,2]
[422362195,1778873442000,-1106.42,0.00014999,2]
[422362193,1778873442000,-1106.42,0.00014999,2]
[422362141,1778873442000,-549.88,0.00014999,2]
[422362160,1778873442000,-500.0,0.00014999,2]
[422362138,1778873442000,-549.88,0.00014999,2]
[422362102,1778873442000,-1601.76405065,0.00014999,5]
[422362127,1778873442000,-549.88,0.00014999,2]
[422362183,1778873442000,-1106.42,0.00014999,2]
[422362068,1778873442000,-274.20162554,0.00014986,2]
[422362073,1778873442000,-156.34451496,0.00014986,2]
[422362081,1778873442000,-955.78216006,0.0001499,2]
[422362075,1778873442000,-289.18740541,0.00014986,2]
[422362083,1778873442000,-955.78216006,0.0001499,2]
[422362085,1778873442000,-151.0,0.00014997,2]
[422362087,1778873442000,-1106.42,0.00014998,2]
[422362079,1778873442000,-150.0,0.0001499,2]
[422362077,1778873442000,-272.83358309,0.00014986,2]
[422362089,1778873442000,-500.0,0.00014998,2]
[422362091,1778873442000,-500.0,0.00014998,2]
[422362096,1778873442000,-500.0,0.00014998,2]
[422362094,1778873442000,-746.33,0.00014998,2]
[422362098,1778873442000,-500.0,0.00014998,2]
[422362100,1778873442000,-201.38691855,0.00014999,5]
[422362106,1778873442000,-500.0,0.00014999,2]
[422362104,1778873442000,-1096.81108638,0.00014999,5]
[422362113,1778873442000,-500.0,0.00014999,2]
[422362110,1778873442000,-500.0,0.00014999,2]
[422362115,1778873442000,-500.0,0.00014999,2]
[422362108,1778873442000,-500.0,0.00014999,2]
[422362117,1778873442000,-549.88,0.00014999,2]
[422362121,1778873442000,-549.88,0.00014999,2]
[422362123,1778873442000,-549.88,0.00014999,2]
[422362119,1778873442000,-549.88,0.00014999,2]
[422362125,1778873442000,-549.88,0.00014999,2]
[422362129,1778873442000,-549.88,0.00014999,2]
[422362070,1778873442000,-266.38482168,0.00014986,2]
[422362178,1778873442000,-1106.42,0.00014999,2]
[422362185,1778873442000,-1106.42,0.00014999,2]
[422362263,1778873442000,-500.0,0.00014999,2]
[422362276,1778873442000,-1215.65,0.00014999,2]
[422362266,1778873442000,-500.0,0.00014999,2]
[422362274,1778873442000,-1215.65,0.00014999,2]
[422362268,1778873442000,-503.8532288,0.00014999,2]
[422362278,1778873442000,-1215.65,0.00014999,2]
[422362270,1778873442000,-1215.65,0.00014999,2]
[422362272,1778873442000,-1215.65,0.00014999,2]
[422362280,1778873442000,-1215.65,0.00014999,2]
[422362292,1778873442000,-1215.65,0.00014999,2]
[422362290,1778873442000,-1215.65,0.00014999,2]
[422362282,1778873442000,-1215.65,0.00014999,2]
[422362294,1778873442000,-1215.65,0.00014999,2]
[422362296,1778873442000,-1215.65,0.00014999,2]
[422362286,1778873442000,-1215.65,0.00014999,2]
[422362298,1778873442000,-1215.65,0.00014999,2]
[422362284,1778873442000,-1215.65,0.00014999,2]
[422362300,1778873442000,-1215.65,0.00014999,2]
[422362302,1778873442000,-1215.65,0.00014999,2]
[422362304,1778873442000,-1215.65,0.00014999,2]
[422362313,1778873442000,-500.0,0.00014999,2]
[422362307,1778873442000,-1215.71987748,0.00014999,2]
[422362306,1778873442000,-1215.65,0.00014999,2]
[422362311,1778873442000,-500.0,0.00014999,2]
[422362309,1778873442000,-500.0,0.00014999,2]
[422362305,1778873442000,-1215.65,0.00014999,2]
[422362179,1778873442000,-1106.42,0.00014999,2]
[422362259,1778873442000,-500.0,0.00014999,2]
[422362261,1778873442000,-190.94577915,0.00014999,2]
[422362315,1778873442000,-746.33,0.00014999,2]
[422362255,1778873442000,-500.0,0.00014999,2]
[422362257,1778873442000,-401.0210076,0.00014999,2]
[422362197,1778873442000,-1106.42,0.00014999,2]
[422362201,1778873442000,-1106.42,0.00014999,2]
[422362203,1778873442000,-1106.42,0.00014999,2]
[422362205,1778873442000,-1106.42,0.00014999,2]
[422362208,1778873442000,-1106.46461365,0.00014999,2]
[422362210,1778873442000,-500.0,0.00014999,2]
[422362212,1778873442000,-500.0,0.00014999,2]
[422362213,1778873442000,-500.0,0.00014999,2]
[422362219,1778873442000,-500.0,0.00014999,2]
[422362221,1778873442000,-500.0,0.00014999,2]
[422362216,1778873442000,-500.0,0.00014999,2]
[422362218,1778873442000,-500.0,0.00014999,2]
[422362224,1778873442000,-500.0,0.00014999,2]
[422362199,1778873442000,-1106.42,0.00014999,2]
[422362230,1778873442000,-640.39212556,0.00014999,2]
[422362226,1778873442000,-426.17237592,0.00014999,2]
[422362251,1778873442000,-500.0,0.00014999,2]
[422362249,1778873442000,-244.36367736,0.00014999,2]
[422362236,1778873442000,-500.0,0.00014999,2]
[422362244,1778873442000,-500.0,0.00014999,2]
[422362247,1778873442000,-500.0,0.00014999,2]
[422362253,1778873442000,-500.0,0.00014999,2]
[422362234,1778873442000,-500.0,0.00014999,2]
[422362238,1778873442000,-500.0,0.00014999,2]
[422362240,1778873442000,-500.0,0.00014999,2]
[422362232,1778873442000,-500.0,0.00014999,2]
[422362228,1778873442000,-500.0,0.00014999,2]
[422362242,1778873442000,-500.0,0.00014999,2]
[422362401,1778873443000,-500.0,0.00014999,2]
[422362399,1778873443000,-500.0,0.00014999,2]
[422362387,1778873443000,-500.0,0.00014999,2]
[422362395,1778873443000,-500.0,0.00014999,2]
[422362383,1778873443000,-500.0,0.00014999,2]
[422362397,1778873443000,-500.0,0.00014999,2]
[422362393,1778873443000,-500.0,0.00014999,2]
[422362391,1778873443000,-500.0,0.00014999,2]
[422362381,1778873443000,-500.0,0.00014999,2]
[422362403,1778873443000,-500.0,0.00014999,2]
[422362385,1778873443000,-500.0,0.00014999,2]
[422362389,1778873443000,-500.0,0.00014999,2]
[422362428,1778873443000,-500.0,0.00014999,2]
[422362405,1778873443000,-500.0,0.00014999,2]
[422362419,1778873443000,-500.0,0.00014999,2]
[422362408,1778873443000,-500.0,0.00014999,2]
[422362421,1778873443000,-500.0,0.00014999,2]
[422362423,1778873443000,-500.0,0.00014999,2]
[422362426,1778873443000,-500.0,0.00014999,2]
[422362415,1778873443000,-500.0,0.00014999,2]
[422362410,1778873443000,-500.0,0.00014999,2]
[422362414,1778873443000,-500.0,0.00014999,2]
[422362412,1778873443000,-500.0,0.00014999,2]
[422362429,1778873443000,-500.0,0.00014999,2]
[422362432,1778873443000,-500.0,0.00014999,2]
[422362379,1778873443000,-500.0,0.00014999,2]
[422362417,1778873443000,-500.0,0.00014999,2]
[422362377,1778873443000,-500.0,0.00014999,2]
[422362346,1778873443000,-746.33,0.00014999,2]
[422362375,1778873443000,-500.0,0.00014999,2]
[422362434,1778873443000,-500.0,0.00014999,2]
[422362317,1778873443000,-500.0,0.00014999,2]
[422362319,1778873443000,-746.33,0.00014999,2]
[422362322,1778873443000,-431.69745624,0.00014999,2]
[422362324,1778873443000,-746.33,0.00014999,2]
[422362326,1778873443000,-746.33,0.00014999,2]
[422362334,1778873443000,-746.33,0.00014999,2]
[422362328,1778873443000,-746.33,0.00014999,2]
[422362332,1778873443000,-746.33,0.00014999,2]
[422362330,1778873443000,-746.33,0.00014999,2]
[422362343,1778873443000,-746.33,0.00014999,2]
[422362337,1778873443000,-746.33,0.00014999,2]
[422362358,1778873443000,-746.36758592,0.00014999,2]
[422362341,1778873443000,-746.33,0.00014999,2]
[422362350,1778873443000,-746.33,0.00014999,2]
[422362348,1778873443000,-746.33,0.00014999,2]
[422362352,1778873443000,-746.33,0.00014999,2]
[422362354,1778873443000,-746.33,0.00014999,2]
[422362363,1778873443000,-500.0,0.00014999,2]
[422362367,1778873443000,-500.0,0.00014999,2]
[422362365,1778873443000,-544.8115812,0.00014999,2]
[422362369,1778873443000,-500.0,0.00014999,2]
[422362356,1778873443000,-746.33,0.00014999,2]
[422362373,1778873443000,-500.0,0.00014999,2]
[422362360,1778873443000,-500.0,0.00014999,2]
[422362371,1778873443000,-500.0,0.00014999,2]
[422362339,1778873443000,-746.33,0.00014999,2]
[422362442,1778873443000,-500.0,0.00014999,2]
[422362507,1778873443000,-500.0,0.00014999,2]
[422362446,1778873443000,-500.0,0.00014999,2]
[422362500,1778873443000,-500.0,0.00014999,2]
[422362513,1778873443000,-500.0,0.00014999,2]
[422362504,1778873443000,-500.0,0.00014999,2]
[422362502,1778873443000,-500.0,0.00014999,2]
[422362554,1778873443000,-4576675.23383293,0.00015,2]
[422362509,1778873443000,-500.0,0.00014999,2]
[422362515,1778873443000,-500.0,0.00014999,2]
[422362511,1778873443000,-500.0,0.00014999,2]
[422362517,1778873443000,-500.0,0.00014999,2]
[422362519,1778873443000,-531.58948672,0.00014999,2]
[422362524,1778873443000,-500.0,0.00014999,2]
[422362522,1778873443000,-500.0,0.00014999,2]
[422362498,1778873443000,-500.0,0.00014999,2]
[422362526,1778873443000,-500.0,0.00014999,2]
[422362529,1778873443000,-500.0,0.00014999,2]
[422362527,1778873443000,-500.0,0.00014999,2]
[422362538,1778873443000,-666.0,0.00014999,2]
[422362533,1778873443000,-500.0,0.00014999,2]
[422362542,1778873443000,-300.0,0.00014999,2]
[422362540,1778873443000,-300.0,0.00014999,2]
[422362544,1778873443000,-300.0,0.00014999,2]
[422362535,1778873443000,-300.0,0.00014999,2]
[422362548,1778873443000,-300.0,0.00014999,2]
[422362546,1778873443000,-666.0,0.00014999,2]
[422362550,1778873443000,-300.0,0.00014999,2]
[422362552,1778873443000,-666.0,0.00014999,2]
[422362531,1778873443000,-500.0,0.00014999,2]
[422362495,1778873443000,-500.0,0.00014999,2]
[422362505,1778873443000,-500.0,0.00014999,2]
[422362485,1778873443000,-500.0,0.00014999,2]
[422362444,1778873443000,-500.0,0.00014999,2]
[422362450,1778873443000,-500.0,0.00014999,2]
[422362448,1778873443000,-500.0,0.00014999,2]
[422362440,1778873443000,-500.0,0.00014999,2]
[422362438,1778873443000,-500.0,0.00014999,2]
[422362454,1778873443000,-500.0,0.00014999,2]
[422362497,1778873443000,-500.0,0.00014999,2]
[422362467,1778873443000,-500.0,0.00014999,2]
[422362469,1778873443000,-500.0,0.00014999,2]
[422362457,1778873443000,-500.0,0.00014999,2]
[422362473,1778873443000,-500.0,0.00014999,2]
[422362475,1778873443000,-500.0,0.00014999,2]
[422362471,1778873443000,-500.0,0.00014999,2]
[422362452,1778873443000,-500.0,0.00014999,2]
[422362459,1778873443000,-500.0,0.00014999,2]
[422362461,1778873443000,-500.0,0.00014999,2]
[422362487,1778873443000,-500.0,0.00014999,2]
[422362494,1778873443000,-500.0,0.00014999,2]
[422362489,1778873443000,-500.0,0.00014999,2]
[422362496,1778873443000,-500.0,0.00014999,2]
[422362492,1778873443000,-500.0,0.00014999,2]
[422362436,1778873443000,-500.0,0.00014999,2]
[422362481,1778873443000,-500.0,0.00014999,2]
[422362483,1778873443000,-500.0,0.00014999,2]
[422362463,1778873443000,-500.0,0.00014999,2]
[422362465,1778873443000,-500.0,0.00014999,2]
[422362479,1778873443000,-500.0,0.00014999,2]
[422362477,1778873443000,-500.0,0.00014999,2]
[422362688,1778873444000,-3448.25219006,0.00015,2]
[422362691,1778873445000,-30101.03951096,0.00015,2]
[422362723,1778873445000,-395.3638,0.00015,2]
[422362726,1778873445000,-2400.1,0.00015,2]
[422362736,1778873445000,-875.89626483,0.00015,2]
[422362738,1778873445000,-3549.4941997,0.00015,2]
[422362731,1778873445000,-1025.49280924,0.00015,2]
[422362733,1778873445000,-20807.02669326,0.00015,2]
[422362757,1778873445000,-2589.57115365,0.00015,2]
[422362756,1778873445000,-3896.25979456,0.00015,2]
[422362769,1778873446000,-100152.0,0.00015,2]
[422362790,1778873588000,4627.62707612,7.945e-05,2]
[422362789,1778873588000,5372.37292388,7.945e-05,2]
[422362814,1778874301000,10000.0,0.000301,120]
[422362815,1778874318000,10000.0,0.000301,120]
[422362818,1778874338000,157.44,6.758e-05,2]
[422362819,1778874338000,157.44,7.48e-05,2]
[422362823,1778874339000,157.44,9.644e-05,2]
[422362821,1778874339000,157.44,8.923e-05,2]
[422362820,1778874339000,157.44,8.201e-05,2]
[422362826,1778874345000,10000.0,0.000301,120]
[422362835,1778874546000,-136.56,0.00011087,2]
[422362834,1778874546000,-157.44,0.00010366,2]
[422362837,1778874577000,-157.44,0.00011809,2]
[422362838,1778874577000,-1221.68,0.00012366,2]
[422362836,1778874577000,-20.88,0.00011087,2]
[422362839,1778874631000,-645.55505471,0.00012299,2]
[422362842,1778874631000,-1688.89376,0.000123,2]
[422362841,1778874631000,-547.15272776,0.000123,2]
[422362843,1778874631000,-261.415,0.000123,2]
[422362840,1778874631000,-554.44494529,0.00012299,2]
[422362846,1778874631000,-148604.43491224,0.000123,2]
[422362848,1778874631000,-21939.44540427,0.000124,2]
[422362844,1778874631000,-1582.56,0.000123,2]
[422362845,1778874631000,-1800.0,0.000123,2]
[422362849,1778874631000,-22076.65561541,0.000124,2]
[422362847,1778874631000,-150.0,0.00012399,2]
[422362898,1778874637000,-2492.09288171,0.000124,2]
[422362935,1778874638000,-500.0,0.00013698,2]
[422362934,1778874638000,-1193.2,0.00013698,2]
[422362926,1778874638000,-500.0,0.00013698,2]
[422362933,1778874638000,-500.0,0.00013698,2]
[422362927,1778874638000,-500.0,0.00013698,2]
[422362930,1778874638000,-500.0,0.00013698,2]
[422362925,1778874638000,-150.0,0.00013675,2]
[422362932,1778874638000,-500.0,0.00013698,2]
[422362936,1778874638000,-500.0,0.00013698,2]
[422362931,1778874638000,-500.0,0.00013698,2]
[422362942,1778874638000,-500.0,0.00013698,2]
[422362948,1778874638000,-500.0,0.00013698,2]
[422362940,1778874638000,-500.0,0.00013698,2]
[422362944,1778874638000,-500.0,0.00013698,2]
[422362939,1778874638000,-500.0,0.00013698,2]
[422362941,1778874638000,-500.0,0.00013698,2]
[422362938,1778874638000,-500.0,0.00013698,2]
[422362943,1778874638000,-706.62,0.00013698,2]
[422362945,1778874638000,-500.0,0.00013698,2]
[422362947,1778874638000,-547.8,0.00013698,2]
[422362946,1778874638000,-500.0,0.00013698,2]
[422362923,1778874638000,-150.0,0.00013628,2]
[422362955,1778874638000,-166.66,0.00013699,2]
[422362937,1778874638000,-500.0,0.00013698,2]
[422362928,1778874638000,-500.0,0.00013698,2]
[422362911,1778874638000,-150.0,0.00013488,2]
[422362924,1778874638000,-194.87,0.00013644,2]
[422362899,1778874638000,-1221.94,0.000124,2]
[422362900,1778874638000,-111118.54479861,0.000124,2]
[422362902,1778874638000,-157.44,0.0001253,2]
[422362901,1778874638000,-214.997284,0.00012506,2]
[422362903,1778874638000,-4327.55830117,0.00012929,2]
[422362905,1778874638000,-4327.55830117,0.00013211,2]
[422362908,1778874638000,-157.44,0.00013252,2]
[422362904,1778874638000,-200.0,0.00013177,2]
[422362906,1778874638000,-2434.15,0.00013224,2]
[422362910,1778874638000,-150.0,0.00013488,2]
[422362909,1778874638000,-2000.0,0.00013416,2]
[422362907,1778874638000,-184.21,0.00013235,2]
[422362912,1778874638000,-150.0,0.00013488,2]
[422362913,1778874638000,-150.0,0.00013488,2]
[422362949,1778874638000,-500.0,0.00013698,2]
[422362915,1778874638000,-150.0,0.00013488,2]
[422362917,1778874638000,-150.0,0.00013488,2]
[422362918,1778874638000,-4327.55830117,0.00013492,2]
[422362914,1778874638000,-150.0,0.00013488,2]
[422362920,1778874638000,-150.0,0.00013535,2]
[422362916,1778874638000,-150.0,0.00013488,2]
[422362921,1778874638000,-150.0,0.00013581,2]
[422362919,1778874638000,-813.0,0.00013529,2]
[422362922,1778874638000,-300.0,0.00013616,2]
[422362956,1778874638000,-200.0,0.00013699,2]
[422362959,1778874638000,-28762.07,0.00013699,2]
[422362952,1778874638000,-998.64,0.00013698,2]
[422362982,1778874638000,-500.0,0.00014023,2]
[422362983,1778874638000,-500.0,0.00014023,2]
[422362984,1778874638000,-500.0,0.00014023,2]
[422362986,1778874638000,-500.0,0.00014023,2]
[422362985,1778874638000,-500.0,0.00014023,2]
[422362987,1778874638000,-1193.2,0.00014023,2]
[422362988,1778874638000,-500.0,0.00014023,2]
[422362992,1778874638000,-150.0,0.0001405,2]
[422362990,1778874638000,-500.0,0.00014023,2]
[422362989,1778874638000,-500.0,0.00014023,2]
[422362991,1778874638000,-500.0,0.00014023,2]
[422362993,1778874638000,-4327.55830117,0.00014055,2]
[422363000,1778874638000,-400.0,0.000142,5]
[422362997,1778874638000,-167.64,0.00014118,2]
[422362995,1778874638000,-150.0,0.00014096,2]
[422362996,1778874638000,-166.66,0.0001411,2]
[422362999,1778874638000,-150.0,0.0001419,2]
[422363001,1778874638000,-150.0,0.00014237,2]
[422363002,1778874638000,-150.0,0.00014237,2]
[422363003,1778874638000,-150.0,0.00014237,2]
[422362994,1778874638000,-150.0,0.00014087,2]
[422363004,1778874638000,-150.0,0.00014237,2]
[422362950,1778874638000,-500.0,0.00013698,2]
[422362980,1778874638000,-1940.8023514,0.0001399,2]
[422362979,1778874638000,-150.0,0.00013987,2]
[422362998,1778874638000,-150.0,0.00014143,2]
[422362976,1778874638000,-150.0,0.00013987,2]
[422362954,1778874638000,-796.45,0.00013699,2]
[422362951,1778874638000,-500.0,0.00013698,2]
[422362978,1778874638000,-150.0,0.00013987,2]
[422362953,1778874638000,-500.0,0.00013698,2]
[422362958,1778874638000,-299.99,0.00013699,2]
[422362968,1778874638000,-150.0,0.00013787,2]
[422362964,1778874638000,-150.0,0.00013737,2]
[422362966,1778874638000,-150.0,0.00013769,2]
[422362961,1778874638000,-150.0,0.00013722,2]
[422362957,1778874638000,-206.78,0.00013699,2]
[422362960,1778874638000,-9999.99,0.00013699,2]
[422362965,1778874638000,-167.1,0.00013751,2]
[422362969,1778874638000,-150.0,0.00013815,2]
[422362973,1778874638000,-150.0,0.00013956,2]
[422362981,1778874638000,-150.0,0.00014003,2]
[422362963,1778874638000,-150.0,0.00013737,2]
[422362977,1778874638000,-150.0,0.00013987,2]
[422362971,1778874638000,-150.0,0.00013862,2]
[422362974,1778874638000,-500.0,0.00013972,2]
[422362975,1778874638000,-166.66,0.00013973,2]